[Event "ESTCC-50 2025"]
[Site "Swidnica"]
[Date "2025.04.05"]
[Round "1.1"]
[White "Buckley, Graeme N"]
[Black "Laszewicz, Pawel"]
[Result "1-0"]
[Annotator "ChessBase"]
[ECO "B52"]
[WhiteElo "2268"]
[BlackElo "2011"]
[PlyCount "81"]
[EventDate "2025.04.05"]
[EventType "team-tourn"]
[EventCountry "POL"]
[SourceTitle "playchess.com"]
[Source "ChessBase"]
[SourceQuality "1"]
[TimeControl "40/5400+30:1800+30"]

1. e4 {[%emt 0:00:04]} c5 {[%emt 0:00:12]} 2. Nf3 {[%emt 0:00:07]} d6 {[%emt 0:00:11]} 3. Bb5+ {[%emt 0:00:10]} Bd7 {[%emt 0:00:17]} 4. Bxd7+ {[%emt 0:00:03]} Qxd7 {[%emt 0:00:35]} 5. c4 {[%emt 0:00:22]} g6 {[%emt 0:02:31]} 6. Nc3 {[%emt 0:01:15]} Bg7 {[%emt 0:00:31]} 7. d4 {[%emt 0:00:11]} cxd4 {[%emt 0:03:12]} 8. Nxd4 {[%emt 0:00:05]} Nc6 {[%emt 0:02:07]} 9. Be3 {[%emt 0:00:15]} Nf6 {[%emt 0:01:19]} 10. f3 {[%emt 0:00:21]} O-O {[%emt 0:01:43]} 11. O-O {[%emt 0:00:07]} Rfd8 {[%emt 0:06:45]} 12. Qd2 {[%emt 0:18:44]} Qc7 {[%emt 0:10:36]} 13. Rac1 {[%emt 0:13:44]} Nxd4 {[%emt 0:16:02]} 14. Bxd4 {[%emt 0:01:03]} Qxc4 {[%emt 0:06:05]} 15. Nd5 {[%emt 0:03:11]} Qa4 {[%emt 0:36:40]} 16. Nxe7+ {[%emt 0:03:43]} Kf8 {[%emt 0:01:51]} 17. Rc7 {[%emt 0:04:32]} Rd7 {[%emt 0:02:14]} 18. Rxd7 {[%emt 0:28:25]} Qxd7 {[%emt 0:00:29]} 19. Bxf6 {[%emt 0:00:52]} Bxf6 {[%emt 0:00:08]} 20. Nd5 {[%emt 0:00:09]} Bg7 {[%emt 0:00:16]} 21. f4 {[%emt 0:02:04]} Rc8 {[%emt 0:03:57]} 22. f5 {[%emt 0:03:28]} Kg8 {[%emt 0:00:16]} 23. h4 {[%emt 0:03:53]} Re8 {[%emt 0:01:08]} 24. Qf4 {[%emt 0:02:45]} Qa4 {[%emt 0:01:17]} 25. b4 {[%emt 0:02:17]} Qb5 {[%emt 0:01:27]} 26. Rf3 {[%emt 0:06:59]} Bd4+ {[%emt 0:00:48]} 27. Kh1 {[%emt 0:00:20]} Be5 {[%emt 0:00:36]} 28. Qe3 {[%emt 0:03:33]} Qa4 {[%emt 0:00:39]} 29. Rf1 {[%emt 0:00:32]} Qxa2 {[%emt 0:00:29]} 30. Qf3 {[%emt 0:01:33]} Qa4 {[%emt 0:00:19]} 31. fxg6 {[%emt 0:00:34]} fxg6 {[%emt 0:00:03]} 32. b5 {[%emt 0:00:24]} Qxb5 {[%emt 0:00:23]} 33. Qf7+ {[%emt 0:00:26]} Kh8 {[%emt 0:00:01]} 34. Nc7 {[%emt 0:00:17]} Qxf1+ {[%emt 0:00:43]} 35. Qxf1 {[%emt 0:00:03]} Rc8 {[%emt 0:00:23]} 36. g3 {[%emt 0:01:14]} a5 {[%emt 0:00:13]} 37. Kg2 {[%emt 0:00:29]} a4 {[%emt 0:00:09]} 38. Nb5 {[%emt 0:00:11]} Kg7 {[%emt 0:00:49]} 39. Qd1 {[%emt 0:00:23]} Ra8 {[%emt 0:01:57]} 40. Qd5 {[%emt 0:00:00]} Rf8 {[%emt 0:00:00]} 41. Qxb7+ {[%emt 0:03:25]} 1-0

[Event "ESTCC-50 2025"]
[Site "Swidnica"]
[Date "2025.04.05"]
[Round "1.2"]
[White "Machlowski, Slawomir"]
[Black "Dickenson, Neil F"]
[Result "0-1"]
[Annotator "ChessBase"]
[ECO "A00"]
[WhiteElo "1963"]
[BlackElo "2250"]
[PlyCount "98"]
[EventDate "2025.04.05"]
[EventType "team-tourn"]
[EventCountry "POL"]
[SourceTitle "playchess.com"]
[Source "ChessBase"]
[SourceQuality "1"]
[TimeControl "40/5400+30:1800+30"]

1. g3 {[%emt 0:00:04]} e5 {[%emt 0:00:11]} 2. c4 {[%emt 0:00:10]} Nf6 {[%emt 0:00:09]} 3. Bg2 {[%emt 0:00:18]} d5 {[%emt 0:00:11]} 4. cxd5 {[%emt 0:00:18]} Nxd5 {[%emt 0:00:09]} 5. Nf3 {[%emt 0:00:20]} Nc6 {[%emt 0:00:07]} 6. O-O {[%emt 0:00:16]} Nb6 {[%emt 0:00:25]} 7. b3 {[%emt 0:01:43]} Be7 {[%emt 0:10:49]} 8. Bb2 {[%emt 0:00:22]} f6 {[%emt 0:00:14]} 9. d4 {[%emt 0:02:26]} e4 {[%emt 0:01:52]} 10. Nfd2 {[%emt 0:00:46]} f5 {[%emt 0:00:31]} 11. Nc4 {[%emt 0:02:51]} Bf6 {[%emt 0:04:51]} 12. Ne5 {[%emt 0:04:21]} Nb4 {[%emt 0:00:33]} 13. Na3 {[%emt 0:01:46]} O-O {[%emt 0:03:14]} 14. Nc2 {[%emt 0:03:16]} Bxe5 {[%emt 0:02:12]} 15. Nxb4 {[%emt 0:00:22]} Bf6 {[%emt 0:00:30]} 16. Nc2 {[%emt 0:02:17]} a5 {[%emt 0:01:54]} 17. f3 {[%emt 0:05:29]} exf3 {[%emt 0:00:21]} 18. Bxf3 {[%emt 0:00:40]} a4 {[%emt 0:00:58]} 19. Qd3 {[%emt 0:04:44]} g6 {[%emt 0:06:47]} 20. Rad1 {[%emt 0:03:49]} c6 {[%emt 0:03:48]} 21. Ba3 {[%emt 0:08:06]} Be7 {[%emt 0:11:41]} 22. Bc1 {[%emt 0:05:44]} Be6 {[%emt 0:05:11]} 23. Bh6 {[%emt 0:03:30]} Rf7 {[%emt 0:00:30]} 24. e4 {[%emt 0:01:36]} axb3 {[%emt 0:00:42]} 25. axb3 {[%emt 0:00:08]} Bg5 {[%emt 0:07:23]} 26. Bxg5 {[%emt 0:03:08]} Qxg5 {[%emt 0:00:08]} 27. exf5 {[%emt 0:08:33]} Bxf5 {[%emt 0:00:33]} 28. Be4 {[%emt 0:00:20]} Raf8 {[%emt 0:01:14]} 29. Bxf5 {[%emt 0:06:23]} Rxf5 {[%emt 0:00:08]} 30. Rxf5 {[%emt 0:00:16]} Rxf5 {[%emt 0:03:13]} 31. Qe4 {[%emt 0:03:54]} Nd5 {[%emt 0:00:50]} 32. Re1 {[%emt 0:03:25]} Qd2 {[%emt 0:03:32]} 33. Qe2 {[%emt 0:00:18]} Qxe2 {[%emt 0:00:43]} 34. Rxe2 {[%emt 0:00:05]} Rf3 {[%emt 0:00:19]} 35. b4 {[%emt 0:11:35]} Rb3 {[%emt 0:00:08]} 36. Kf2 {[%emt 0:02:45]} Kf7 {[%emt 0:00:29]} 37. Ne3 {[%emt 0:06:20]} Nxe3 {[%emt 0:02:37]} 38. Rxe3 {[%emt 0:00:06]} Rxb4 {[%emt 0:01:38]} 39. Re4 {[%emt 0:00:33]} Rb2+ {[%emt 0:00:12]} 40. Kg1 {[%emt 0:00:00]} Rd2 {[%emt 0:00:00]} 41. h4 {[%emt 0:01:40]} h5 {[%emt 0:01:20]} 42. Kf1 {[%emt 0:00:49]} Kf6 {[%emt 0:02:07]} 43. Ke1 {[%emt 0:02:45]} Rb2 {[%emt 0:02:48]} 44. g4 {[%emt 0:09:27]} hxg4 {[%emt 0:00:24]} 45. Rxg4 {[%emt 0:00:04]} b5 {[%emt 0:00:29]} 46. d5 {[%emt 0:04:51]} cxd5 {[%emt 0:00:46]} 47. Rg5 {[%emt 0:00:05]} Rh2 {[%emt 0:08:00]} 48. Rxd5 {[%emt 0:00:41]} b4 {[%emt 0:00:08]} 49. Rd4 {[%emt 0:00:29]} b3 {[%emt 0:00:15]} 0-1

[Event "ESTCC-50 2025"]
[Site "Swidnica"]
[Date "2025.04.05"]
[Round "1.3"]
[White "Crocker, Philip J"]
[Black "Kruczynski, Marek"]
[Result "1-0"]
[Annotator "ChessBase"]
[ECO "A41"]
[WhiteElo "2137"]
[BlackElo "1862"]
[PlyCount "173"]
[EventDate "2025.04.05"]
[EventType "team-tourn"]
[EventCountry "POL"]
[SourceTitle "playchess.com"]
[Source "ChessBase"]
[SourceQuality "1"]
[WhiteTeam "England"]
[BlackTeam "Poland"]
[TimeControl "40/5400+30:1800+30"]

1. c4 {[%emt 0:00:04]} g6 {[%emt 0:00:32]} 2. Nc3 {[%emt 0:00:28]} Bg7 {[%emt 0:00:14]} 3. d4 {[%emt 0:00:59]} d6 {[%emt 0:00:41]} 4. Nf3 {[%emt 0:00:41]} Nd7 {[%emt 0:02:24]} 5. g3 {[%emt 0:01:29]} e5 {[%emt 0:06:56]} 6. Bg2 {[%emt 0:00:50]} Ne7 {[%emt 0:02:35]} 7. h4 {[%emt 0:01:56]} Nc6 {[%emt 0:09:42]} 8. d5 {[%emt 0:02:21]} Ne7 {[%emt 0:04:00]} 9. e4 {[%emt 0:02:33]} a5 {[%emt 0:02:46]} 10. h5 {[%emt 0:01:34]} Nc5 {[%emt 0:02:28]} 11. h6 {[%emt 0:03:16]} Bf6 {[%emt 0:02:03]} 12. Be3 {[%emt 0:02:35]} b6 {[%emt 0:01:03]} 13. Qc2 {[%emt 0:03:22]} Bd7 {[%emt 0:01:36]} 14. Nd2 {[%emt 0:08:27]} O-O {[%emt 0:02:24]} 15. f3 {[%emt 0:09:02]} Kh8 {[%emt 0:01:52]} 16. Bh3 {[%emt 0:02:54]} Ng8 {[%emt 0:02:22]} 17. Bxd7 {[%emt 0:01:46]} Nxd7 {[%emt 0:00:18]} 18. O-O-O {[%emt 0:01:46]} Bg5 {[%emt 0:04:30]} 19. f4 {[%emt 0:03:27]} Be7 {[%emt 0:13:09]} 20. Nf3 {[%emt 0:01:44]} Ngf6 {[%emt 0:02:20]} 21. Rdf1 {[%emt 0:09:36]} Ng4 {[%emt 0:02:10]} 22. Qe2 {[%emt 0:01:44]} Nxe3 {[%emt 0:01:37]} 23. Qxe3 {[%emt 0:00:05]} f6 {[%emt 0:02:39]} 24. f5 {[%emt 0:01:18]} g5 {[%emt 0:02:17]} 25. g4 {[%emt 0:01:55]} Nc5 {[%emt 0:02:30]} 26. b3 {[%emt 0:03:32]} Rg8 {[%emt 0:00:52]} 27. Rh2 {[%emt 0:01:47]} Qd7 {[%emt 0:02:27]} 28. Rd1 {[%emt 0:02:02]} Na6 {[%emt 0:10:33]} 29. Ne1 {[%emt 0:05:06]} Nc5 {[%emt 0:00:14]} 30. Nd3 {[%emt 0:00:55]} Nb7 {[%emt 0:01:27]} 31. Kd2 {[%emt 0:02:27]} Nd8 {[%emt 0:00:13]} 32. Ke1 {[%emt 0:01:32]} Nf7 {[%emt 0:00:07]} 33. Rdd2 {[%emt 0:01:38]} Rgc8 {[%emt 0:03:01]} 34. Nf2 {[%emt 0:01:26]} Bf8 {[%emt 0:00:28]} 35. Rh5 {[%emt 0:02:54]} Be7 {[%emt 0:03:59]} 36. Nd3 {[%emt 0:01:01]} Qe8 {[%emt 0:01:14]} 37. Kf2 {[%emt 0:02:50]} Bf8 {[%emt 0:01:13]} 38. Kf3 {[%emt 0:00:59]} Be7 {[%emt 0:00:32]} 39. Rh1 {[%emt 0:00:50]} Bf8 {[%emt 0:00:27]} 40. Nc1 {[%emt 0:00:00]} Qe7 {[%emt 0:00:00]} 41. Rdh2 {[%emt 0:03:14]} Qd7 {[%emt 0:05:39]} 42. N1e2 {[%emt 0:00:36]} Be7 {[%emt 0:00:31]} 43. Ng3 {[%emt 0:00:16]} Rg8 {[%emt 0:17:41]} 44. Nh5 {[%emt 0:02:12]} Rgc8 {[%emt 0:00:42]} 45. Ng7 {[%emt 0:00:45]} Bf8 {[%emt 0:00:42]} 46. Ne6 {[%emt 0:00:53]} Be7 {[%emt 0:00:42]} 47. Rd1 {[%emt 0:01:56]} Qe8 {[%emt 0:02:49]} 48. Qf2 {[%emt 0:01:12]} Kg8 {[%emt 0:03:26]} 49. Qb2 {[%emt 0:02:09]} Qd7 {[%emt 0:01:24]} 50. Qa3 {[%emt 0:02:36]} Qe8 {[%emt 0:00:33]} 51. Qa4 {[%emt 0:02:31]} Qxa4 {[%emt 0:00:24]} 52. Nxa4 {[%emt 0:00:32]} Bf8 {[%emt 0:00:44]} 53. Nc3 {[%emt 0:00:45]} Be7 {[%emt 0:00:14]} 54. Ke2 {[%emt 0:02:46]} Kh8 {[%emt 0:01:05]} 55. Kd3 {[%emt 0:00:23]} Kg8 {[%emt 0:00:13]} 56. Kc2 {[%emt 0:00:24]} Kh8 {[%emt 0:00:49]} 57. Kb2 {[%emt 0:00:11]} Kg8 {[%emt 0:03:32]} 58. Rc1 {[%emt 0:01:54]} Kh8 {[%emt 0:00:57]} 59. Ka3 {[%emt 0:01:30]} c6 {[%emt 0:02:03]} 60. Kb2 {[%emt 0:00:47]} c5 {[%emt 0:00:28]} 61. Ka3 {[%emt 0:00:42]} Ra7 {[%emt 0:01:15]} 62. Ka4 {[%emt 0:00:35]} Rb7 {[%emt 0:00:12]} 63. Kb5 {[%emt 0:00:34]} Kg8 {[%emt 0:00:30]} 64. Ka4 {[%emt 0:03:45]} Bd8 {[%emt 0:00:36]} 65. Nb5 {[%emt 0:00:49]} Be7 {[%emt 0:00:13]} 66. Ka3 {[%emt 0:02:33]} Kh8 {[%emt 0:00:17]} 67. Kb2 {[%emt 0:00:12]} Kg8 {[%emt 0:00:14]} 68. Kc3 {[%emt 0:00:15]} Bd8 {[%emt 0:01:39]} 69. a3 {[%emt 0:00:42]} Ra8 {[%emt 0:00:16]} 70. Rb1 {[%emt 0:01:05]} Be7 {[%emt 0:01:42]} 71. Ra1 {[%emt 0:02:11]} Bf8 {[%emt 0:00:53]} 72. Nbc7 {[%emt 0:02:17]} Rc8 {[%emt 0:00:35]} 73. Nxf8 {[%emt 0:00:46]} Rcxc7 {[%emt 0:00:38]} 74. Ne6 {[%emt 0:00:11]} Rd7 {[%emt 0:00:36]} 75. b4 {[%emt 0:00:14]} Ra7 {[%emt 0:00:26]} 76. bxc5 {[%emt 0:01:21]} dxc5 {[%emt 0:00:21]} 77. Rb1 {[%emt 0:00:33]} Nd6 {[%emt 0:01:09]} 78. Rxb6 {[%emt 0:02:52]} Nxe4+ {[%emt 0:00:06]} 79. Kd3 {[%emt 0:00:14]} Nd6 {[%emt 0:00:54]} 80. Rb8+ {[%emt 0:01:39]} Kf7 {[%emt 0:00:29]} 81. Nd8+ {[%emt 0:01:46]} Rxd8 {[%emt 0:00:46]} 82. Rxd8 {[%emt 0:00:04]} e4+ {[%emt 0:00:34]} 83. Kc3 {[%emt 0:00:32]} Ke7 {[%emt 0:00:31]} 84. Rh8 {[%emt 0:00:35]} Nf7 {[%emt 0:00:13]} 85. Rxh7 {[%emt 0:00:43]} Kd6 {[%emt 0:00:38]} 86. Rxf7 {[%emt 0:01:05]} Rxf7 {[%emt 0:00:08]} 87. h7 {[%emt 0:00:06]} 1-0

[Event "ESTCC-50 2025"]
[Site "Swidnica"]
[Date "2025.04.05"]
[Round "1.4"]
[White "Szydelko, Kazimierz"]
[Black "Noyce, Robert C"]
[Result "0-1"]
[Annotator "NA"]
[ECO "A87"]
[WhiteElo "1798"]
[BlackElo "2065"]
[PlyCount "60"]
[EventDate "2025.04.05"]
[EventType "team-tourn"]
[EventCountry "POL"]
[SourceTitle "playchess.com"]
[Source "ChessBase"]
[SourceQuality "1"]
[TimeControl "40/5400+30:1800+30"]

1. Nf3 {[%emt 0:00:08]} f5 {[%emt 0:00:16]} 2. d4 {[%emt 0:00:33]} Nf6 {[%emt 0:00:14]} 3. c4 {[%emt 0:00:28]} g6 {[%emt 0:00:13]} 4. g3 {[%emt 0:00:14]} Bg7 {[%emt 0:00:09]} 5. Bg2 {[%emt 0:00:06]} O-O {[%emt 0:00:22]} 6. O-O {[%emt 0:00:06]} d6 {[%emt 0:00:06]} 7. Nc3 {[%emt 0:01:51]} Qe8 {[%emt 0:04:00]} 8. e4 {[%emt 0:06:35]} Nxe4 {[%emt 0:10:19]} 9. Nxe4 {[%emt 0:00:26]} fxe4 {[%emt 0:00:09]} 10. Ng5 {[%emt 0:00:57]} Nc6 {[%emt 0:19:32]} 11. Be3 {[%emt 0:01:33]} e5 {[%emt 0:04:38]} 12. d5 {[%emt 0:08:39]} Nd4 {[%emt 0:04:05]} 13. Nxe4 {[%emt 0:00:33]} Bf5 {[%emt 0:01:55]} 14. Qd2 {[%emt 0:05:48]} Qd7 {[%emt 0:13:16]} 15. Rac1 {[%emt 0:03:02]} b6 {[%emt 0:02:31]} 16. f4 {[%emt 0:03:06]} Bxe4 {[%emt 0:01:37]} 17. Bxe4 {[%emt 0:00:18]} Nf5 {[%emt 0:00:26]} 18. Bxf5 {[%emt 0:03:59]} Qxf5 {[%emt 0:00:39]} 19. b4 {[%emt 0:02:46]} exf4 {[%emt 0:10:16]} 20. Rxf4 {[%emt 0:03:39]} Qd7 {[%emt 0:00:55]} 21. Rcf1 {[%emt 0:01:47]} Rxf4 {[%emt 0:01:40]} 22. Rxf4 Re8 {[%emt 0:01:19]} 23. Kg2 {[%emt 0:18:07]} Qe7 {[%emt 0:04:34]} 24. Rf3 {[%emt 0:00:35]} Qe4 {[%emt 0:00:18]} 25. Qe2 {[%emt 0:09:56]} Bd4 {[%emt 0:07:21]} 26. Kf2 {[%emt 0:00:16]} g5 {[%emt 0:00:59]} 27. h3 {[%emt 0:11:32]} h5 {[%emt 0:00:25]} 28. Qd2 {[%emt 0:00:50]} g4 {[%emt 0:01:50]} 29. hxg4 {[%emt 0:06:12]} hxg4 {[%emt 0:00:11]} 30. Bxd4 {[%emt 0:00:26]} Qxf3+ {[%emt 0:00:11]} 0-1

[Event "ESTCC-50 2025"]
[Site "Swidnica"]
[Date "2025.04.05"]
[Round "1.5"]
[White "Zeidler, Sven P."]
[Black "Rogowski, Jaroslaw"]
[Result "1-0"]
[Annotator "ChessBase"]
[ECO "B07"]
[WhiteElo "2143"]
[BlackElo "2050"]
[PlyCount "91"]
[EventDate "2025.04.05"]
[EventType "team-tourn"]
[EventCountry "POL"]
[SourceTitle "playchess.com"]
[Source "ChessBase"]
[SourceQuality "1"]
[TimeControl "40/5400+30:1800+30"]

1. e4 {[%emt 0:00:03]} Nf6 {[%emt 0:00:10]} 2. Nc3 {[%emt 0:02:40]} d6 {[%emt 0:00:43]} 3. d4 {[%emt 0:00:27]} g6 {[%emt 0:00:42]} 4. Bc4 {[%emt 0:00:41]} c6 {[%emt 0:04:00]} 5. Qf3 {[%emt 0:05:06]} e5 {[%emt 0:17:25]} 6. Bg5 {[%emt 0:12:26]} Bg7 {[%emt 0:03:31]} 7. Nge2 {[%emt 0:04:23]} Nbd7 {[%emt 0:03:45]} 8. O-O-O {[%emt 0:03:43]} b5 {[%emt 0:05:30]} 9. Bb3 {[%emt 0:06:42]} b4 {[%emt 0:07:36]} 10. Nb1 {[%emt 0:08:44]} Qe7 {[%emt 0:04:35]} 11. Rhe1 {[%emt 0:04:48]} O-O {[%emt 0:03:50]} 12. Nd2 {[%emt 0:05:40]} a5 {[%emt 0:02:48]} 13. Ba4 {[%emt 0:04:25]} Ra6 {[%emt 0:05:55]} 14. Nc4 {[%emt 0:02:13]} h6 {[%emt 0:04:44]} 15. Bh4 {[%emt 0:04:41]} g5 {[%emt 0:04:58]} 16. Bg3 {[%emt 0:02:05]} Nb6 {[%emt 0:02:20]} 17. Nxb6 {[%emt 0:03:34]} Rxb6 {[%emt 0:00:13]} 18. dxe5 {[%emt 0:04:06]} dxe5 {[%emt 0:00:09]} 19. Qe3 {[%emt 0:00:23]} c5 {[%emt 0:05:14]} 20. f3 {[%emt 0:00:58]} Be6 {[%emt 0:01:14]} 21. Kb1 {[%emt 0:02:19]} Rc8 {[%emt 0:02:12]} 22. Bf2 {[%emt 0:06:05]} Rb7 {[%emt 0:02:52]} 23. Ng3 {[%emt 0:01:03]} c4 {[%emt 0:04:02]} 24. Nf5 {[%emt 0:00:29]} Bxf5 {[%emt 0:00:28]} 25. exf5 {[%emt 0:00:03]} Nd7 {[%emt 0:01:40]} 26. Qe4 {[%emt 0:02:42]} Nb6 {[%emt 0:03:25]} 27. Bb5 {[%emt 0:00:47]} Rcc7 {[%emt 0:05:24]} 28. h4 {[%emt 0:01:00]} Nc8 {[%emt 0:00:41]} 29. Ba6 {[%emt 0:01:00]} Rb8 {[%emt 0:00:26]} 30. hxg5 {[%emt 0:02:34]} hxg5 {[%emt 0:00:54]} 31. Qd5 {[%emt 0:01:24]} c3 {[%emt 0:00:50]} 32. Qd8+ {[%emt 0:01:44]} Bf8 {[%emt 0:02:06]} 33. f6 {[%emt 0:00:24]} Qxd8 {[%emt 0:00:47]} 34. Rxd8 {[%emt 0:00:07]} Rc6 {[%emt 0:01:26]} 35. Rh1 {[%emt 0:02:07]} Rxf6 {[%emt 0:00:14]} 36. Rxc8 {[%emt 0:01:04]} Rxc8 {[%emt 0:00:23]} 37. Bxc8 {[%emt 0:00:07]} cxb2 {[%emt 0:00:17]} 38. Be3 {[%emt 0:01:15]} Rc6 {[%emt 0:00:48]} 39. Bf5 {[%emt 0:00:35]} f6 {[%emt 0:00:59]} 40. Kxb2 {[%emt 0:00:00]} Rc3 {[%emt 0:00:00]} 41. Bd2 {[%emt 0:03:35]} Rc6 {[%emt 0:07:23]} 42. Re1 {[%emt 0:01:33]} Kf7 {[%emt 0:04:06]} 43. Re3 {[%emt 0:03:03]} Bd6 {[%emt 0:02:17]} 44. Rd3 {[%emt 0:00:39]} Ke7 {[%emt 0:00:47]} 45. Rd5 {[%emt 0:01:05]} Ra6 {[%emt 0:04:20]} 46. Be3 {[%emt 0:00:40]} 1-0

[Event "ESTCC-50 2025"]
[Site "Swidnica"]
[Date "2025.04.05"]
[Round "1.6"]
[White "Ograbek, Grzegorz"]
[Black "Fletcher, John"]
[Result "1/2-1/2"]
[Annotator "NA"]
[ECO "A01"]
[WhiteElo "2068"]
[BlackElo "1989"]
[PlyCount "40"]
[EventDate "2025.04.05"]
[EventType "team-tourn"]
[EventCountry "POL"]
[SourceTitle "playchess.com"]
[Source "ChessBase"]
[SourceQuality "1"]
[TimeControl "40/5400+30:1800+30"]

1. b3 {[%emt 0:00:10]} d5 {[%emt 0:00:19]} 2. Bb2 {[%emt 0:00:23]} Nf6 {[%emt 0:00:27]} 3. Nf3 {[%emt 0:00:24]} c5 {[%emt 0:02:40]} 4. e3 {[%emt 0:00:36]} Nc6 {[%emt 0:00:34]} 5. Be2 {[%emt 0:12:19]} g6 {[%emt 0:01:29]} 6. d4 {[%emt 0:27:18]} Bg7 {[%emt 0:04:04]} 7. O-O {[%emt 0:01:38]} cxd4 {[%emt 0:01:57]} 8. Nxd4 {[%emt 0:04:41]} O-O {[%emt 0:03:29]} 9. Nxc6 {[%emt 0:00:20]} bxc6 {[%emt 0:00:16]} 10. c4 {[%emt 0:00:09]} Re8 {[%emt 0:07:18]} 11. Nc3 {[%emt 0:27:17]} e5 {[%emt 0:07:18]} 12. Na4 {[%emt 0:05:00]} Qe7 {[%emt 0:05:37]} 13. Rc1 {[%emt 0:06:43]} Ba6 {[%emt 0:13:19]} 14. Qd2 {[%emt 0:01:58]} dxc4 {[%emt 0:07:33]} 15. Bxc4 {[%emt 0:00:17]} Bc8 {[%emt 0:11:19]} 16. Be2 {[%emt 0:04:10]} Rd8 {[%emt 0:01:20]} 17. Qa5 {[%emt 0:01:51]} Rd5 {[%emt 0:02:01]} 18. Rc5 {[%emt 0:00:10]} Ne4 {[%emt 0:05:44]} 19. Rxd5 {[%emt 0:00:40]} cxd5 {[%emt 0:00:08]} 20. f3 {[%emt 0:02:42]} Nf6 {[%emt 0:02:32]} 1/2-1/2

[Event "ESTCC-50 2025"]
[Site "Swidnica"]
[Date "2025.04.05"]
[Round "1.7"]
[White "Adams, Mark"]
[Black "Czyz, Andrzej"]
[Result "0-1"]
[Annotator "NA"]
[ECO "C11"]
[WhiteElo "1916"]
[BlackElo "1985"]
[PlyCount "90"]
[EventDate "2025.04.05"]
[EventType "team-tourn"]
[EventCountry "POL"]
[SourceTitle "playchess.com"]
[Source "ChessBase"]
[SourceQuality "1"]
[TimeControl "40/5400+30:1800+30"]

1. e4 {[%emt 0:00:05]} e6 {[%emt 0:00:20]} 2. d4 {[%emt 0:00:21]} d5 {[%emt 0:00:07]} 3. Nc3 {[%emt 0:00:08]} Nf6 {[%emt 0:00:50]} 4. Bg5 {[%emt 0:00:15]} dxe4 {[%emt 0:00:24]} 5. Nxe4 {[%emt 0:00:09]} Be7 {[%emt 0:00:27]} 6. Bxf6 {[%emt 0:00:15]} gxf6 {[%emt 0:00:24]} 7. Nf3 {[%emt 0:00:57]} f5 {[%emt 0:00:23]} 8. Ng3 {[%emt 0:04:46]} a6 {[%emt 0:06:20]} 9. Bd3 {[%emt 0:06:21]} Nc6 {[%emt 0:01:41]} 10. c3 {[%emt 0:01:57]} b5 {[%emt 0:04:55]} 11. Qe2 {[%emt 0:08:38]} Bb7 {[%emt 0:01:51]} 12. Rd1 {[%emt 0:05:24]} Rg8 {[%emt 0:11:09]} 13. d5 {[%emt 0:09:57]} Qxd5 {[%emt 0:07:28]} 14. Bxf5 {[%emt 0:00:34]} Qxa2 {[%emt 0:00:45]} 15. Bxh7 {[%emt 0:03:19]} Rg7 {[%emt 0:02:57]} 16. Bb1 {[%emt 0:05:47]} Qb3 {[%emt 0:01:56]} 17. Qc2 {[%emt 0:10:13]} Qxc2 {[%emt 0:13:26]} 18. Bxc2 {[%emt 0:00:05]} Na5 {[%emt 0:05:48]} 19. Ke2 {[%emt 0:18:08]} Nc4 {[%emt 0:02:39]} 20. Rb1 {[%emt 0:00:17]} Rd8 {[%emt 0:03:05]} 21. Rhd1 {[%emt 0:02:14]} f5 {[%emt 0:04:01]} 22. Nd4 {[%emt 0:02:22]} Rd6 {[%emt 0:01:16]} 23. Kf1 {[%emt 0:02:22]} c5 {[%emt 0:01:32]} 24. Nb3 {[%emt 0:02:11]} Rxd1+ {[%emt 0:02:07]} 25. Rxd1 {[%emt 0:03:01]} Nxb2 {[%emt 0:01:05]} 26. Re1 {[%emt 0:00:05]} Bd5 {[%emt 0:00:45]} 27. f3 {[%emt 0:01:40]} Nc4 {[%emt 0:01:01]} 28. Nh5 {[%emt 0:01:17]} Rf7 {[%emt 0:03:30]} 29. Nf4 {[%emt 0:00:21]} Kd7 {[%emt 0:00:15]} 30. Nd3 {[%emt 0:03:18]} f4 {[%emt 0:03:43]} 31. Nbxc5+ {[%emt 0:00:14]} Bxc5 {[%emt 0:00:11]} 32. Nxc5+ {[%emt 0:00:02]} Ke7 {[%emt 0:06:13]} 33. Bd3 {[%emt 0:03:27]} a5 {[%emt 0:01:11]} 34. Kf2 {[%emt 0:01:15]} Kd6 {[%emt 0:02:03]} 35. Bxc4 {[%emt 0:00:54]} Kxc5 {[%emt 0:00:38]} 36. Bd3 {[%emt 0:00:56]} a4 {[%emt 0:01:21]} 37. Ra1 {[%emt 0:02:00]} Ra7 {[%emt 0:00:09]} 38. h4 {[%emt 0:00:39]} a3 {[%emt 0:00:01]} 39. Ke2 {[%emt 0:00:51]} a2 {[%emt 0:00:09]} 40. Kd2 {[%emt 0:00:00]} b4 {[%emt 0:00:00]} 41. cxb4+ {[%emt 0:01:02]} Kxb4 {[%emt 0:01:01]} 42. h5 {[%emt 0:13:16]} Kb3 {[%emt 0:00:54]} 43. h6 {[%emt 0:03:35]} Kb2 {[%emt 0:01:02]} 44. h7 {[%emt 0:00:14]} Ra8 {[%emt 0:00:24]} 45. Rh1 {[%emt 0:04:38]} a1=Q {[%emt 0:01:42]} 0-1

[Event "ESTCC-50 2025"]
[Site "Swidnica"]
[Date "2025.04.05"]
[Round "1.8"]
[White "Wielosz, Jaroslaw"]
[Black "Van Kemenade, Rudy"]
[Result "1-0"]
[Annotator "NA"]
[ECO "E97"]
[WhiteElo "1939"]
[BlackElo "1945"]
[PlyCount "79"]
[EventDate "2025.04.05"]
[EventType "team-tourn"]
[EventCountry "POL"]
[SourceTitle "playchess.com"]
[Source "ChessBase"]
[SourceQuality "1"]
[TimeControl "40/5400+30:1800+30"]

1. Nf3 {[%emt 0:00:10]} Nf6 {[%emt 0:00:09]} 2. c4 {[%emt 0:00:13]} g6 {[%emt 0:00:06]} 3. Nc3 {[%emt 0:00:20]} Bg7 {[%emt 0:00:07]} 4. e4 {[%emt 0:02:55]} d6 {[%emt 0:01:16]} 5. d4 {[%emt 0:00:12]} O-O {[%emt 0:00:08]} 6. Be2 {[%emt 0:00:14]} e5 {[%emt 0:00:10]} 7. O-O {[%emt 0:00:22]} Nc6 {[%emt 0:00:06]} 8. d5 {[%emt 0:00:18]} Ne7 {[%emt 0:00:07]} 9. b4 {[%emt 0:00:20]} Ne8 {[%emt 0:00:06]} 10. a4 {[%emt 0:01:12]} h6 {[%emt 0:00:11]} 11. a5 {[%emt 0:09:22]} f5 {[%emt 0:00:26]} 12. a6 {[%emt 0:00:57]} b6 {[%emt 0:00:08]} 13. c5 {[%emt 0:02:42]} f4 {[%emt 0:00:09]} 14. Nd2 {[%emt 0:07:52]} Nf6 {[%emt 0:00:53]} 15. cxd6 {[%emt 0:04:18]} cxd6 {[%emt 0:00:35]} 16. Nc4 {[%emt 0:06:01]} h5 {[%emt 0:02:33]} 17. f3 {[%emt 0:09:33]} g5 {[%emt 0:00:19]} 18. Nb5 {[%emt 0:03:03]} Ne8 {[%emt 0:00:09]} 19. Bd2 {[%emt 0:05:34]} Ng6 {[%emt 0:00:33]} 20. Be1 {[%emt 0:01:43]} Rf7 {[%emt 0:00:32]} 21. Bf2 {[%emt 0:03:56]} Bf8 {[%emt 0:00:09]} 22. Nxa7 {[%emt 0:06:38]} Rfxa7 {[%emt 0:02:35]} 23. Nxb6 {[%emt 0:01:05]} Rb8 {[%emt 0:06:29]} 24. Nxc8 {[%emt 0:00:50]} Rg7 {[%emt 0:00:45]} 25. Na7 {[%emt 0:01:21]} Ne7 {[%emt 0:00:43]} 26. b5 {[%emt 0:04:17]} g4 {[%emt 0:00:13]} 27. fxg4 {[%emt 0:02:24]} hxg4 {[%emt 0:00:07]} 28. Bxg4 {[%emt 0:01:31]} Nf6 {[%emt 0:00:07]} 29. Be6+ {[%emt 0:00:40]} Kh8 {[%emt 0:00:09]} 30. Qd3 {[%emt 0:06:46]} Qe8 {[%emt 0:01:32]} 31. Nc6 {[%emt 0:08:23]} Nxc6 {[%emt 0:00:09]} 32. bxc6 {[%emt 0:00:11]} Qg6 {[%emt 0:00:11]} 33. Qh3+ {[%emt 0:03:14]} Rh7 {[%emt 0:00:17]} 34. Bf5 {[%emt 0:01:53]} Rxh3 {[%emt 0:00:26]} 35. Bxg6 {[%emt 0:00:14]} Rc3 {[%emt 0:02:08]} 36. a7 {[%emt 0:00:28]} Ra8 {[%emt 0:00:15]} 37. Rfb1 {[%emt 0:01:24]} Kg7 {[%emt 0:00:08]} 38. Bf5 {[%emt 0:00:26]} Kh6 {[%emt 0:01:21]} 39. Rb8 {[%emt 0:00:41]} Rxa7 {[%emt 0:00:07]} 40. Bxa7 {[%emt 0:00:00]} 1-0